fUST/lending_fUST_20250730
["ID","MTS","AMOUNT","RATE_DAILY","PERIOD"]
[376167255,1753882246995,-500.0,0.00018819,2]
[376167258,1753882247007,-199.21264675,0.00018819,2]
[376167260,1753882247018,-500.0,0.00018819,2]
[376167262,1753882247030,-460.0,0.00018819,2]
[376167265,1753882247043,-151.0,0.00018819,2]
[376167267,1753882247054,-500.0,0.00018819,2]
[376167269,1753882247066,-154.42548843,0.00018819,2]
[376167272,1753882247078,-151.0,0.00018819,2]
[376167274,1753882247090,-460.0,0.00018819,2]
[376167276,1753882247102,-460.0,0.00018819,2]
[376167278,1753882247113,-151.0,0.00018819,2]
[376167281,1753882247124,-151.0,0.00018819,2]
[376167283,1753882247135,-151.0,0.00018819,2]
[376167285,1753882247147,-151.0,0.00018819,2]
[376167287,1753882247157,-460.0,0.00018819,2]
[376167290,1753882247170,-460.0,0.00018819,2]
[376167292,1753882247182,-460.0,0.00018819,2]
[376167294,1753882247193,-460.0,0.00018819,2]
[376167296,1753882247204,-460.0,0.00018819,2]
[376167298,1753882247215,-460.0,0.00018819,2]
[376167301,1753882247225,-460.0,0.00018819,2]
[376167303,1753882247235,-460.0,0.00018819,2]
[376167305,1753882247245,-460.0,0.00018819,2]
[376167307,1753882247255,-460.0,0.00018819,2]
[376167309,1753882247266,-460.0,0.00018819,2]
[376167311,1753882247276,-460.0,0.00018819,2]
[376167313,1753882247286,-460.0,0.00018819,2]
[376167316,1753882247297,-460.0,0.00018819,2]
[376167318,1753882247308,-460.0,0.00018819,2]
[376167320,1753882247319,-460.0,0.00018819,2]
[376167322,1753882247330,-460.0,0.00018819,2]
[376167324,1753882247341,-460.0,0.00018819,2]
[376167326,1753882247352,-460.0,0.00018819,2]
[376167329,1753882247363,-460.0,0.00018819,2]
[376167331,1753882247374,-653.21,0.00018819,2]
[376167333,1753882247386,-460.0,0.0001882,2]
[376167336,1753882247398,-460.0,0.0001882,2]
[376167338,1753882247408,-460.0,0.0001882,2]
[376167340,1753882247421,-460.0,0.0001882,2]
[376167342,1753882247431,-460.0,0.0001882,2]
[376167344,1753882247442,-151.0,0.0001882,2]
[376167346,1753882247451,-290.54900114,0.0001882,2]
[376167348,1753882247461,-151.0,0.0001882,2]
[376167350,1753882247471,-151.0,0.0001882,2]
[376167353,1753882247481,-460.0,0.0001882,2]
[376167355,1753882247495,-151.0,0.0001882,2]
[376167357,1753882247506,-151.0,0.0001882,2]
[376167359,1753882247519,-151.0,0.0001882,2]
[376167362,1753882247531,-151.0,0.0001882,2]
[376167364,1753882247543,-151.0,0.0001882,2]
[376167366,1753882247553,-460.0,0.0001882,2]
[376167368,1753882247563,-500.0,0.0001882,2]
[376167370,1753882247574,-293.97,0.0001882,2]
[376167373,1753882247584,-460.0,0.0001882,2]
[376167375,1753882247595,-2679.74,0.0001882,2]
[376167377,1753882247608,-151.0,0.00018821,2]
[376167379,1753882247619,-500.0,0.00018821,2]
[376167381,1753882247630,-701.63,0.00018821,2]
[376167383,1753882247639,-500.57,0.00018893,2]
[376167385,1753882247650,-733.56,0.00018893,2]
[376167388,1753882247660,-460.0,0.00018894,2]
[376167390,1753882247670,-1002.21,0.00018894,2]
[376167392,1753882247680,-460.0,0.00018894,2]
[376167394,1753882247690,-460.0,0.00018894,2]
[376167396,1753882247701,-666.65,0.00018894,2]
[376167398,1753882247711,-151.0,0.00018912,2]
[376167400,1753882247721,-151.0,0.00018912,2]
[376167402,1753882247731,-151.0,0.00019082,2]
[376167405,1753882247742,-151.0,0.00019082,2]
[376167407,1753882247753,-151.0,0.00019082,2]
[376167409,1753882247763,-255.81420797,0.00019082,2]
[376167411,1753882247773,-357.28,0.00019085,3]
[376167413,1753882247783,-330.68146207,0.00019092,2]
[376167415,1753882247794,-460.0,0.00019092,2]
[376167418,1753882247804,-304.97831765,0.00019092,2]
[376167420,1753882247815,-1299.57,0.00019092,2]
[376167422,1753882247826,-460.0,0.00019092,2]
[376167424,1753882247836,-545.88,0.00019092,2]
[376167426,1753882247847,-460.0,0.00019092,2]
[376167428,1753882247858,-460.0,0.00019092,2]
[376167431,1753882247868,-460.0,0.00019092,2]
[376167433,1753882247878,-420.39,0.00019092,2]
[376167435,1753882247889,-460.0,0.00019092,2]
[376167437,1753882247899,-460.0,0.00019092,2]
[376167439,1753882247910,-349.01290652,0.00019092,2]
[376167441,1753882247921,-460.0,0.00019092,2]
[376167443,1753882247931,-460.0,0.00019092,2]
[376167446,1753882247941,-553.56,0.00019092,2]
[376167448,1753882247951,-460.0,0.00019092,2]
[376167450,1753882247961,-460.0,0.00019092,2]
[376167452,1753882247972,-500.0,0.00019093,2]
[376167454,1753882247982,-500.0,0.00019093,2]
[376167456,1753882247992,-271.76297711,0.00019093,2]
[376167458,1753882248003,-500.0,0.00019093,2]
[376167461,1753882248014,-151.0,0.00019093,2]
[376167463,1753882248024,-151.0,0.00019093,2]
[376167465,1753882248035,-460.0,0.00019093,2]
[376167467,1753882248046,-460.0,0.00019093,2]
[376167469,1753882248056,-460.0,0.00019093,2]
[376167471,1753882248067,-460.0,0.00019093,2]
[376167473,1753882248077,-525.67432893,0.00019093,2]
[376167476,1753882248088,-557.94112511,0.00019093,2]
[376167478,1753882248098,-460.0,0.00019093,2]
[376167480,1753882248108,-460.0,0.00019093,2]
[376167482,1753882248119,-395.83524839,0.00019093,2]
[376167484,1753882248130,-460.0,0.00019093,2]
[376167486,1753882248140,-460.0,0.00019093,2]
[376167488,1753882248151,-460.0,0.00019093,2]
[376167490,1753882248161,-460.0,0.00019093,2]
[376167493,1753882248172,-460.0,0.00019093,2]
[376167495,1753882248183,-460.0,0.00019093,2]
[376167497,1753882248193,-460.0,0.00019093,2]
[376167499,1753882248203,-648.78,0.00019093,2]
[376167501,1753882248214,-460.0,0.00019093,2]
[376167503,1753882248224,-460.0,0.00019093,2]
[376167505,1753882248234,-565.23,0.00019093,2]
[376167507,1753882248245,-460.0,0.00019093,2]
[376167510,1753882248255,-284.02287489,0.00019093,2]
[376167512,1753882248266,-495.2718359,0.00019093,2]
[376167514,1753882248276,-151.26995315,0.00019093,2]
[376167516,1753882248287,-460.0,0.00019093,2]
[376167518,1753882248297,-460.0,0.00019093,2]
[376167519,1753882248307,-460.0,0.00019093,2]
[376167520,1753882248317,-3062.29,0.00019093,2]
[376167521,1753882248475,-2934.7,0.00019093,2]
[376167522,1753882248491,-460.0,0.00019093,2]
[376167523,1753882248502,-460.0,0.00019093,2]
[376167524,1753882248512,-344.97293541,0.00019093,2]
[376167525,1753882248521,-460.0,0.00019093,2]
[376167526,1753882248531,-460.0,0.00019093,2]
[376167527,1753882248540,-417.32426362,0.00019093,2]
[376167528,1753882248549,-460.0,0.00019093,2]
[376167529,1753882248558,-460.0,0.00019093,2]
[376167530,1753882248566,-460.0,0.00019093,2]
[376167531,1753882248575,-460.0,0.00019093,2]
[376167532,1753882248585,-460.0,0.00019093,2]
[376167533,1753882248594,-460.0,0.00019093,2]
[376167534,1753882248604,-460.0,0.00019093,2]
[376167535,1753882248613,-489.76577529,0.00019093,2]
[376167536,1753882248622,-460.0,0.00019093,2]
[376167537,1753882248631,-460.0,0.00019093,2]
[376167538,1753882248640,-460.0,0.00019093,2]
[376167539,1753882248649,-460.0,0.00019093,2]
[376167540,1753882248658,-460.0,0.00019093,2]
[376167541,1753882248667,-460.0,0.00019093,2]
[376167542,1753882248679,-460.0,0.00019093,2]
[376167543,1753882248688,-460.0,0.00019093,2]
[376167544,1753882248697,-460.0,0.00019093,2]
[376167545,1753882248706,-343.14724192,0.00019093,2]
[376167546,1753882248715,-460.0,0.00019093,2]
[376167547,1753882248724,-460.0,0.00019093,2]
[376167548,1753882248733,-460.0,0.00019093,2]
[376167549,1753882248742,-460.0,0.00019093,2]
[376167550,1753882248752,-460.0,0.00019093,2]
[376167552,1753882248762,-607.67,0.00019093,2]
[376167554,1753882248772,-460.0,0.00019093,2]
[376167556,1753882248781,-460.0,0.00019093,2]
[376167558,1753882248790,-460.0,0.00019093,2]
[376167560,1753882248799,-460.0,0.00019093,2]
[376167562,1753882248808,-460.0,0.00019093,2]
[376167564,1753882248817,-460.0,0.00019093,2]
[376167566,1753882248826,-460.0,0.00019093,2]
[376167568,1753882248836,-460.0,0.00019093,2]
[376167570,1753882248845,-460.0,0.00019093,2]
[376167572,1753882248854,-460.0,0.00019093,2]
[376167574,1753882248863,-460.0,0.00019093,2]
[376167576,1753882248872,-460.0,0.00019093,2]
[376167577,1753882248881,-460.0,0.00019093,2]
[376167579,1753882248891,-460.0,0.00019093,2]
[376167581,1753882248902,-460.0,0.00019093,2]
[376167583,1753882248912,-460.0,0.00019093,2]
[376167585,1753882248923,-460.0,0.00019093,2]
[376167587,1753882248933,-460.0,0.00019093,2]
[376167589,1753882248943,-460.0,0.00019093,2]
[376167591,1753882248953,-460.0,0.00019093,2]
[376167593,1753882248964,-460.0,0.00019093,2]
[376167595,1753882248973,-460.0,0.00019093,2]
[376167597,1753882248984,-460.0,0.00019093,2]
[376167599,1753882248994,-460.0,0.00019093,2]
[376167601,1753882249004,-526.98,0.00019093,2]
[376167603,1753882249014,-460.0,0.00019093,2]
[376167605,1753882249024,-460.0,0.00019093,2]
[376167607,1753882249035,-460.0,0.00019093,2]
[376167609,1753882249045,-460.0,0.00019093,2]
[376167611,1753882249054,-653.21,0.00019093,2]
[376167613,1753882249063,-151.0,0.00019094,2]
[376167614,1753882249073,-154.64654729,0.00019094,2]
[376167616,1753882249082,-151.0,0.00019094,2]
[376167618,1753882249092,-151.0,0.00019094,2]
[376167620,1753882249101,-151.0,0.00019094,2]
[376167622,1753882249112,-466.67479086,0.00019094,2]
[376167624,1753882249121,-460.0,0.00019094,2]
[376167626,1753882249131,-460.0,0.00019094,2]
[376167628,1753882249140,-460.0,0.00019094,2]
[376167630,1753882249150,-460.0,0.00019094,2]
[376167632,1753882249160,-460.0,0.00019094,2]
[376167634,1753882249169,-460.0,0.00019094,2]
[376167636,1753882249180,-460.0,0.00019094,2]
[376167638,1753882249190,-460.0,0.00019094,2]
[376167640,1753882249200,-460.0,0.00019094,2]
[376167642,1753882249209,-460.0,0.00019094,2]
[376167644,1753882249218,-2679.74,0.00019094,2]
[376167646,1753882249227,-152.1008972,0.00019095,2]
[376167648,1753882249237,-500.0,0.00019095,2]
[376167650,1753882249246,-701.63,0.00019095,2]
[376167652,1753882249256,-500.57,0.00019167,2]
[376167654,1753882249264,-733.56,0.00019167,2]
[376167656,1753882249273,-460.0,0.00019168,2]
[376167657,1753882249283,-1002.21,0.00019168,2]
[376167659,1753882249292,-460.0,0.00019168,2]
[376167661,1753882249301,-666.65,0.00019168,2]
[376167663,1753882249310,-151.0,0.00019178,2]
[376167665,1753882249319,-151.0,0.00019178,2]
[376167667,1753882249329,-257.17009997,0.00019178,2]
[376167669,1753882249339,-666.0,0.00019178,2]
[376167671,1753882249349,-196.282787,0.00019178,2]
[376167673,1753882249358,-151.0,0.00019186,2]
[376167675,1753882249367,-152.67255641,0.00019186,2]
[376167677,1753882249376,-700.0,0.000193,2]
[376167679,1753882249386,-151.0,0.00019329,2]
[376167681,1753882249395,-151.0,0.00019329,2]
[376167683,1753882249404,-151.0,0.00019329,2]
[376167685,1753882249414,-151.0,0.00019329,2]
[376167687,1753882249425,-681.511488,0.00019329,2]
[376167689,1753882249435,-681.511488,0.00019329,2]
[376167690,1753882249445,-70539.46112162,0.00019329,2]
[376167692,1753882249455,-500.0,0.00019335,2]
[376167694,1753882249465,-500.0,0.00019335,2]
[376167696,1753882249474,-1937.92555029,0.0001936,2]
[376167698,1753882249484,-1299.57,0.00019366,2]
[376167700,1753882249498,-475.09,0.00019366,2]
[376167702,1753882249508,-545.88,0.00019366,2]
[376167704,1753882249517,-460.0,0.00019366,2]
[376167706,1753882249527,-460.0,0.00019366,2]
[376167708,1753882249536,-444.59,0.00019366,2]
[376167710,1753882249546,-460.0,0.00019366,2]
[376167712,1753882249559,-460.0,0.00019366,2]
[376167714,1753882249569,-460.0,0.00019366,2]
[376167716,1753882249579,-553.56,0.00019366,2]
[376167718,1753882249589,-460.0,0.00019366,2]
[376167720,1753882249598,-460.0,0.00019366,2]
[376167722,1753882249608,-500.0,0.00019367,2]
[376167724,1753882249620,-500.0,0.00019367,2]
[376167726,1753882249629,-500.0,0.00019367,2]
[376167728,1753882249639,-151.0,0.00019367,2]
[376167730,1753882249648,-198.0,0.00019367,2]
[376167732,1753882249657,-460.0,0.00019367,2]
[376167734,1753882249667,-460.0,0.00019367,2]
[376167736,1753882249679,-460.0,0.00019367,2]
[376167738,1753882249690,-460.0,0.00019367,2]
[376167740,1753882249699,-460.0,0.00019367,2]
[376167741,1753882249709,-460.0,0.00019367,2]
[376167743,1753882249718,-460.0,0.00019367,2]
[376167745,1753882249727,-648.78,0.00019367,2]
[376167747,1753882249737,-460.0,0.00019367,2]
[376167749,1753882249747,-406.28697748,0.00019367,2]
[376167751,1753882249756,-460.0,0.00019367,2]
[376167753,1753882249765,-460.0,0.00019367,2]
[376167755,1753882249774,-460.0,0.00019367,2]
[376167757,1753882249783,-3062.29,0.00019367,2]
[376167759,1753882249791,-2934.7,0.00019367,2]
[376167761,1753882249801,-460.0,0.00019367,2]
[376167762,1753882249810,-460.0,0.00019367,2]
[376167764,1753882249819,-460.0,0.00019367,2]
[376167766,1753882249829,-589.36,0.00019367,2]
[376167768,1753882249838,-460.0,0.00019367,2]
[376167770,1753882249847,-460.0,0.00019367,2]
[376167772,1753882249856,-460.0,0.00019367,2]
[376167774,1753882249866,-460.0,0.00019367,2]
[376167776,1753882249875,-460.0,0.00019367,2]
[376167778,1753882249884,-460.0,0.00019367,2]
[376167780,1753882249893,-460.0,0.00019367,2]
[376167782,1753882249903,-460.0,0.00019367,2]
[376167784,1753882249912,-460.0,0.00019367,2]
[376167786,1753882249921,-460.0,0.00019367,2]
[376167787,1753882249931,-460.0,0.00019367,2]
[376167789,1753882249940,-460.0,0.00019367,2]
[376167791,1753882249949,-460.0,0.00019367,2]
[376167793,1753882249959,-460.0,0.00019367,2]
[376167795,1753882249968,-460.0,0.00019367,2]
[376167797,1753882249977,-460.0,0.00019367,2]
[376167799,1753882249987,-460.0,0.00019367,2]
[376167801,1753882249997,-607.67,0.00019367,2]
[376167803,1753882250006,-460.0,0.00019367,2]
[376167805,1753882250015,-460.0,0.00019367,2]
[376167807,1753882250025,-460.0,0.00019367,2]
[376167808,1753882250034,-276.07,0.00019367,2]
[376167809,1753882250043,-460.0,0.00019367,2]
[376167810,1753882250052,-460.0,0.00019367,2]
[376167811,1753882250061,-460.0,0.00019367,2]
[376167812,1753882250070,-460.0,0.00019367,2]
[376167813,1753882250079,-460.0,0.00019367,2]
[376167814,1753882250088,-460.0,0.00019367,2]
[376167815,1753882250097,-460.0,0.00019367,2]
[376167816,1753882250107,-460.0,0.00019367,2]
[376167817,1753882250116,-460.0,0.00019367,2]
[376167818,1753882250125,-460.0,0.00019367,2]
[376167819,1753882250134,-460.0,0.00019367,2]
[376167820,1753882250143,-460.0,0.00019367,2]
[376167821,1753882250152,-460.0,0.00019367,2]
[376167822,1753882250161,-460.0,0.00019367,2]
[376167823,1753882250170,-460.0,0.00019367,2]
[376167824,1753882250183,-460.0,0.00019367,2]
[376167825,1753882250192,-482.17,0.00019367,2]
[376167826,1753882250201,-460.0,0.00019367,2]
[376167827,1753882250210,-653.21,0.00019367,2]
[376167828,1753882250219,-151.0,0.00019368,2]
[376167829,1753882250229,-151.0,0.00019368,2]
[376167830,1753882250238,-460.0,0.00019368,2]
[376167831,1753882250247,-460.0,0.00019368,2]
[376167832,1753882250256,-460.0,0.00019368,2]
[376167833,1753882250265,-460.0,0.00019368,2]
[376167834,1753882250274,-460.0,0.00019368,2]
[376167835,1753882250284,-241.42250435,0.00019368,2]
[376167836,1753882250293,-549.35,0.00019368,2]
[376167837,1753882250302,-460.0,0.00019368,2]
[376167838,1753882250311,-2679.74,0.00019368,2]
[376167839,1753882250320,-398.06957659,0.00019369,2]
[376167840,1753882250329,-701.63,0.00019369,2]
[376167841,1753882250339,-500.0,0.00019375,2]
[376167842,1753882250349,-500.0,0.00019417,2]
[376167843,1753882250358,-500.0,0.00019417,2]
[376167845,1753882250368,-500.0,0.00019426,2]
[376167847,1753882250377,-178.12299723,0.00019434,2]
[376167849,1753882250386,-500.0,0.00019434,2]
[376167851,1753882250396,-500.0,0.00019434,2]
[376167853,1753882250406,-524.827298,0.00019434,2]
[376167855,1753882250415,-500.0,0.00019434,2]
[376167857,1753882250427,-646.26358049,0.00019434,2]
[376167859,1753882250436,-500.57,0.00019441,2]
[376167861,1753882250445,-733.56,0.00019441,2]
[376167863,1753882250454,-151.0,0.00019442,2]
[376167865,1753882250463,-496.11,0.00019442,2]
[376167867,1753882250472,-1002.21,0.00019442,2]
[376167869,1753882250481,-460.0,0.00019442,2]
[376167871,1753882250495,-666.65,0.00019442,2]
[376167873,1753882250504,-151.0,0.00019452,2]
[376167875,1753882250513,-151.0,0.00019452,2]
[376167876,1753882250522,-504.12015115,0.00019477,2]
[376167878,1753882250533,-475.42391577,0.00019477,2]
[376167880,1753882250542,-503.74849276,0.00019477,2]
[376167882,1753882250551,-500.59689588,0.00019477,2]
[376167884,1753882250560,-542.55430628,0.00019477,2]
[376167886,1753882250570,-151.0,0.00019541,2]
[376167888,1753882250580,-1299.57,0.0001964,2]
[376167890,1753882250589,-545.88,0.0001964,2]
[376167892,1753882250598,-460.0,0.0001964,2]
[376167894,1753882250607,-235.32682258,0.0001964,2]
[376167896,1753882250616,-460.0,0.0001964,2]
[376167898,1753882250625,-460.0,0.0001964,2]
[376167900,1753882250634,-553.56,0.0001964,2]
[376167902,1753882250645,-460.0,0.0001964,2]
[376167904,1753882250654,-500.0,0.00019641,2]
[376167906,1753882250662,-460.0,0.00019641,2]
[376167908,1753882250675,-460.0,0.00019641,2]
[376167910,1753882250684,-460.0,0.00019641,2]
[376167913,1753882250694,-460.0,0.00019641,2]
[376167915,1753882250703,-460.0,0.00019641,2]
[376167917,1753882250713,-460.0,0.00019641,2]
[376167918,1753882250722,-648.78,0.00019641,2]
[376167920,1753882250731,-460.0,0.00019641,2]
[376167922,1753882250741,-460.0,0.00019641,2]
[376167925,1753882250753,-460.0,0.00019641,2]
[376167927,1753882250762,-460.0,0.00019641,2]
[376167929,1753882250771,-3062.29,0.00019641,2]
[376167931,1753882250781,-2934.7,0.00019641,2]
[376167933,1753882250790,-460.0,0.00019641,2]
[376167934,1753882250799,-460.0,0.00019641,2]
[376167936,1753882250809,-460.0,0.00019641,2]
[376167938,1753882250818,-460.0,0.00019641,2]
[376167939,1753882250827,-460.0,0.00019641,2]
[376167940,1753882250837,-154.67719564,0.00019641,2]
[376167943,1753882250847,-460.0,0.00019641,2]
[376167944,1753882250856,-460.0,0.00019641,2]
[376167946,1753882250866,-460.0,0.00019641,2]
[376167948,1753882250876,-460.0,0.00019641,2]
[376167950,1753882250885,-457.8,0.00019641,2]
[376167952,1753882250894,-460.0,0.00019641,2]
[376167954,1753882250904,-460.0,0.00019641,2]
[376167956,1753882250914,-595.50931405,0.00019641,2]
[376167958,1753882250927,-460.0,0.00019641,2]
[376167961,1753882250937,-460.0,0.00019641,2]
[376167963,1753882250948,-460.0,0.00019641,2]
[376167965,1753882250958,-463.30240919,0.00019641,2]
[376167967,1753882250967,-607.67,0.00019641,2]
[376167969,1753882250977,-460.0,0.00019641,2]
[376167971,1753882250987,-460.0,0.00019641,2]
[376167973,1753882250996,-460.0,0.00019641,2]
[376167975,1753882251006,-543.92,0.00019641,2]
[376167976,1753882251015,-460.0,0.00019641,2]
[376167978,1753882251024,-460.0,0.00019641,2]
[376167980,1753882251033,-460.0,0.00019641,2]
[376167981,1753882251043,-460.0,0.00019641,2]
[376167982,1753882251053,-460.0,0.00019641,2]
[376167983,1753882251062,-460.0,0.00019641,2]
[376167985,1753882251072,-460.0,0.00019641,2]
[376167987,1753882251081,-460.0,0.00019641,2]
[376167988,1753882251090,-349.23,0.00019641,2]
[376167989,1753882251100,-460.0,0.00019641,2]
[376167991,1753882251109,-393.67061827,0.00019641,2]
[376167993,1753882251119,-460.0,0.00019641,2]
[376167995,1753882251128,-653.21,0.00019641,2]
[376167997,1753882251138,-198.0,0.00019642,2]
[376167999,1753882251147,-460.0,0.00019642,2]
[376168001,1753882251157,-460.0,0.00019642,2]
[376168003,1753882251166,-460.0,0.00019642,2]
[376168005,1753882251179,-460.0,0.00019642,2]
[376168007,1753882251189,-1554.95280309,0.00019642,2]
[376168099,1753882252596,-1124.78719691,0.00019642,2]
[376168100,1753882252605,-681.511488,0.00019643,2]
[376168102,1753882252614,-681.511488,0.00019643,2]
[376168103,1753882252623,-701.63,0.00019643,2]
[376168104,1753882252633,-160.0,0.00019688,2]
[376168105,1753882252644,-160.0,0.00019688,2]
[376168106,1753882252653,-526.76118213,0.00019688,2]
[376168107,1753882252663,-312.16666667,0.00019688,2]
[376168108,1753882252672,-125.53332349,0.00019688,2]
[376168109,1753882252685,-105.90593495,0.00019688,2]
[376168110,1753882252694,-405.34406505,0.00019688,2]
[376168600,1753882308671,24013.1199689,0.00017955,2]
[376168608,1753882519023,781.720399,0.00018102,2]
[376168614,1753882732770,10000.0,0.00023,30]
[376168624,1753883030201,18667.3725882,0.0001881,2]
[376168626,1753883091622,163.559441,0.00013699,2]
[376168631,1753883165430,200.0,0.00023,30]
[376168643,1753883308587,-300.0,0.00018815,2]
[376168644,1753883308609,-460.0,0.00018816,2]
[376168645,1753883308630,-460.0,0.00018816,2]
[376168646,1753883308653,-460.0,0.00018816,2]
[376168647,1753883308675,-541.48219479,0.00018816,2]
[376168648,1753883308697,-460.0,0.00018817,2]
[376168649,1753883308719,-460.0,0.00018817,2]
[376168650,1753883308743,-460.0,0.00018817,2]
[376168651,1753883308765,-460.0,0.00018817,2]
[376168652,1753883308787,-584.02609723,0.00018817,2]
[376168653,1753883308809,-460.0,0.00018817,2]
[376168654,1753883308836,-460.0,0.00018817,2]
[376168655,1753883308858,-460.0,0.00018817,2]
[376168656,1753883308883,-460.0,0.00018817,2]
[376168657,1753883308907,-460.0,0.00018817,2]
[376168658,1753883308930,-460.0,0.00018817,2]
[376168659,1753883308952,-460.0,0.00018817,2]
[376168660,1753883308976,-460.0,0.00018817,2]
[376168661,1753883308998,-460.0,0.00018817,2]
[376168662,1753883309022,-460.0,0.00018817,2]
[376168663,1753883309044,-460.0,0.00018817,2]
[376168664,1753883309066,-460.0,0.00018817,2]
[376168665,1753883309087,-460.0,0.00018817,2]
[376168666,1753883309109,-460.0,0.00018817,2]
[376168667,1753883309130,-460.0,0.00018817,2]
[376168668,1753883309154,-460.0,0.00018817,2]
[376168669,1753883309176,-460.0,0.00018817,2]
[376168670,1753883309199,-460.0,0.00018817,2]
[376168671,1753883309221,-460.0,0.00018817,2]
[376168672,1753883309243,-460.0,0.00018817,2]
[376168673,1753883309265,-460.0,0.00018817,2]
[376168674,1753883309290,-460.0,0.00018817,2]
[376168675,1753883309313,-460.0,0.00018817,2]
[376168676,1753883309337,-460.0,0.00018817,2]
[376168677,1753883309360,-460.0,0.00018817,2]
[376168678,1753883309383,-328.41,0.00018817,2]
[376168679,1753883309545,-461.3,0.00018817,2]
[376168680,1753883309568,-463.09126028,0.00018817,2]
[376168681,1753883309592,-460.0,0.00018817,2]
[376168682,1753883309615,-460.0,0.00018817,2]
[376168683,1753883309637,-460.0,0.00018817,2]
[376168684,1753883309659,-460.0,0.00018817,2]
[376168685,1753883309682,-460.0,0.00018817,2]
[376168686,1753883309705,-460.0,0.00018817,2]
[376168687,1753883309729,-460.0,0.00018817,2]
[376168688,1753883309754,-460.0,0.00018817,2]
[376168689,1753883309778,-460.0,0.00018817,2]
[376168690,1753883309802,-463.56432003,0.00018817,2]
[376168691,1753883309828,-368.02867891,0.00018817,2]
[376168692,1753883309852,-460.0,0.00018817,2]
[376168693,1753883309875,-460.0,0.00018817,2]
[376168694,1753883309902,-2457.2,0.00018817,2]
[376168695,1753883309924,-464.48587296,0.00018817,2]
[376168696,1753883309948,-460.0,0.00018817,2]
[376168698,1753883309971,-460.0,0.00018817,2]
[376168699,1753883309993,-460.0,0.00018817,2]
[376168700,1753883310017,-460.0,0.00018817,2]
[376168701,1753883310041,-1082.98,0.00018817,2]
[376168702,1753883310063,-460.0,0.00018817,2]
[376168703,1753883310086,-460.0,0.00018817,2]
[376168704,1753883310111,-156.89,0.00018817,2]
[376168705,1753883310137,-342.85304722,0.00018817,2]
[376168706,1753883310163,-460.0,0.00018817,2]
[376168707,1753883310191,-516.27,0.00018817,2]
[376168708,1753883310217,-460.0,0.00018817,2]
[376168709,1753883310244,-460.0,0.00018817,2]
[376168710,1753883310272,-460.0,0.00018817,2]
[376168711,1753883310301,-460.0,0.00018817,2]
[376168712,1753883310328,-539.61,0.00018817,2]
[376168713,1753883310354,-460.0,0.00018817,2]
[376168714,1753883310381,-426.29724674,0.00018818,2]
[376168715,1753883310410,-460.0,0.00018818,2]
[376168716,1753883310437,-460.0,0.00018818,2]
[376168717,1753883310462,-460.0,0.00018818,2]
[376168718,1753883310487,-460.0,0.00018818,2]